[Event "Early-Titled-Tuesday-Blitz-January-23-2024"]
[Site "Chess.com"]
[Date "2024.01.23"]
[Round "5"]
[White "Egor_Koshulyan"]
[Black "BilodeauA"]
[Result "0-1"]
[WhiteElo "2693"]
[BlackElo "2930"]
[TimeControl "180+1"]
[EndTime "8:56:00 PST"]
[Termination "BilodeauA won by resignation"]

1. e4 {[%clk 0:03:00.9]} 1... c5 {[%clk 0:02:59.4]} 2. Nf3 {[%clk 0:02:58.5]}
2... d6 {[%clk 0:02:58.8]} 3. d4 {[%clk 0:02:59.2]} 3... cxd4 {[%clk 0:02:59.5]}
4. Qxd4 {[%clk 0:03:00]} 4... Nc6 {[%clk 0:02:57.5]} 5. Bb5 {[%clk 0:03:00]}
5... Bd7 {[%clk 0:02:57.8]} 6. Bxc6 {[%clk 0:03:00.4]} 6... bxc6 {[%clk
0:02:58.6]} 7. c4 {[%clk 0:03:00]} 7... e5 {[%clk 0:02:54.7]} 8. Qd3 {[%clk
0:02:59.9]} 8... Nf6 {[%clk 0:02:52.6]} 9. Nc3 {[%clk 0:02:41.8]} 9... h6 {[%clk
0:02:51.4]} 10. c5 {[%clk 0:02:41.3]} 10... Be6 {[%clk 0:02:41.9]} 11. cxd6
{[%clk 0:02:41.1]} 11... Bxd6 {[%clk 0:02:42]} 12. O-O {[%clk 0:02:40.3]} 12...
O-O {[%clk 0:02:40.6]} 13. Rd1 {[%clk 0:02:35.3]} 13... Bc7 {[%clk 0:02:39]} 14.
Be3 {[%clk 0:02:28.4]} 14... Qb8 {[%clk 0:02:29.3]} 15. b3 {[%clk 0:02:23.7]}
15... Qb7 {[%clk 0:02:06.6]} 16. Na4 {[%clk 0:02:19.9]} 16... Rad8 {[%clk
0:01:59.2]} 17. Qc2 {[%clk 0:02:19.4]} 17... Bg4 {[%clk 0:01:55.6]} 18. Nc5
{[%clk 0:02:03.9]} 18... Qc8 {[%clk 0:01:55.1]} 19. Rxd8 {[%clk 0:01:58.5]}
19... Rxd8 {[%clk 0:01:54.6]} 20. Ne1 {[%clk 0:01:48.6]} 20... Bb6 {[%clk
0:01:50.2]} 21. Ned3 {[%clk 0:01:40.8]} 21... Be6 {[%clk 0:01:45.1]} 22. Nxe5
{[%clk 0:01:30.9]} 22... Re8 {[%clk 0:01:45.5]} 23. Ned3 {[%clk 0:01:14.6]}
23... Bc7 {[%clk 0:01:44.8]} 24. Bf4 {[%clk 0:01:11.3]} 24... Bb6 {[%clk
0:01:43.5]} 25. Rc1 {[%clk 0:01:08.2]} 25... Bd7 {[%clk 0:01:23.7]} 26. f3
{[%clk 0:01:02.2]} 26... Qd8 {[%clk 0:01:15.6]} 27. Kh1 {[%clk 0:00:59]} 27...
Bc8 {[%clk 0:01:15.7]} 28. Nb4 {[%clk 0:00:55.7]} 28... Nh5 {[%clk 0:01:12.6]}
29. Be3 {[%clk 0:00:37.7]} 29... Qf6 {[%clk 0:01:12.4]} 30. Qf2 {[%clk
0:00:24.7]} 30... Bc7 {[%clk 0:01:04.6]} 31. Ncd3 {[%clk 0:00:22.4]} 31... Bd7
{[%clk 0:00:55.7]} 32. Nc5 {[%clk 0:00:20.4]} 32... Bc8 {[%clk 0:00:44.8]} 33.
Ncd3 {[%clk 0:00:20.8]} 33... Bd7 {[%clk 0:00:29.7]} 34. Nc5 {[%clk 0:00:19.7]}
34... Be6 {[%clk 0:00:28.1]} 35. Nxe6 {[%clk 0:00:19.1]} 35... Rxe6 {[%clk
0:00:29]} 36. Nd3 {[%clk 0:00:16.9]} 36... a5 {[%clk 0:00:21.5]} 37. Rd1 {[%clk
0:00:14.1]} 37... Qd8 {[%clk 0:00:18.3]} 38. Nb2 {[%clk 0:00:10.7]} 38... Qb8
{[%clk 0:00:18.5]} 39. g3 {[%clk 0:00:09.5]} 39... g5 {[%clk 0:00:16.4]} 40. Nc4
{[%clk 0:00:08.6]} 40... a4 {[%clk 0:00:16]} 41. bxa4 {[%clk 0:00:07.7]} 41...
Qb4 {[%clk 0:00:14.6]} 42. Nb6 {[%clk 0:00:07.3]} 42... g4 {[%clk 0:00:09.2]}
43. Bc5 {[%clk 0:00:04.9]} 43... Qc3 {[%clk 0:00:07.4]} 44. Bd4 {[%clk
0:00:02.9]} 44... Qb4 {[%clk 0:00:05.2]} 45. Bc5 {[%clk 0:00:03]} 45... Qa5
{[%clk 0:00:05.9]} 46. Nc4 {[%clk 0:00:02.8]} 46... Qxa4 {[%clk 0:00:05.3]} 47.
fxg4 {[%clk 0:00:03.5]} 47... Qxd1+ {[%clk 0:00:05.4]} 48. Kg2 {[%clk
0:00:03.2]} 48... Qxg4 {[%clk 0:00:06.1]} 49. Be3 {[%clk 0:00:03.5]} 49... Qxe4+
{[%clk 0:00:05.6]} 50. Qf3 {[%clk 0:00:03.5]} 50... Qxc4 {[%clk 0:00:05.4]} 51.
Qxh5 {[%clk 0:00:03.7]} 51... Rxe3 {[%clk 0:00:05.4]} 52. Qg4+ {[%clk
0:00:04.2]} 52... Qxg4 {[%clk 0:00:05.5]} 0-1

[Event "Early-Titled-Tuesday-Blitz-January-23-2024"]
[Site "Chess.com"]
[Date "2024.01.23"]
[Round "5"]
[White "DDTerziev04"]
[Black "Piotrek1979"]
[Result "0-1"]
[WhiteElo "2193"]
[BlackElo "2402"]
[TimeControl "180+1"]
[EndTime "8:56:00 PST"]
[Termination "Piotrek1979 won on time"]

1. e4 {[%clk 0:03:00.9]} 1... d5 {[%clk 0:02:59.2]} 2. exd5 {[%clk 0:02:59.9]}
2... Qxd5 {[%clk 0:03:00.1]} 3. Nc3 {[%clk 0:02:59.8]} 3... Qd6 {[%clk
0:03:00.7]} 4. Bc4 {[%clk 0:02:57.1]} 4... Nf6 {[%clk 0:03:00.6]} 5. d3 {[%clk
0:02:56.7]} 5... Bg4 {[%clk 0:02:58.4]} 6. Nge2 {[%clk 0:02:56.4]} 6... e6
{[%clk 0:02:55.3]} 7. O-O {[%clk 0:02:55.8]} 7... c6 {[%clk 0:02:49]} 8. f3
{[%clk 0:02:55.2]} 8... Bf5 {[%clk 0:02:46.4]} 9. Ng3 {[%clk 0:02:54.7]} 9...
Bg6 {[%clk 0:02:45.5]} 10. f4 {[%clk 0:02:54.6]} 10... Nbd7 {[%clk 0:02:21.5]}
11. Be3 {[%clk 0:02:33.3]} 11... Nb6 {[%clk 0:01:53]} 12. Bxb6 {[%clk
0:02:13.5]} 12... axb6 {[%clk 0:01:51.8]} 13. f5 {[%clk 0:02:11.9]} 13... exf5
{[%clk 0:01:49.6]} 14. Qe2+ {[%clk 0:02:11.2]} 14... Be7 {[%clk 0:01:16.9]} 15.
Rae1 {[%clk 0:02:08.3]} 15... Ra5 {[%clk 0:01:11.9]} 16. a3 {[%clk 0:01:38.4]}
16... Kd8 {[%clk 0:01:07.7]} 17. d4 {[%clk 0:01:28.6]} 17... f4 {[%clk
0:00:50.7]} 18. Rxf4 {[%clk 0:01:05.6]} 18... Qxf4 {[%clk 0:00:39.2]} 19. Qxe7+
{[%clk 0:01:05.1]} 19... Kc8 {[%clk 0:00:39.8]} 20. Bxf7 {[%clk 0:01:01]} 20...
Kb8 {[%clk 0:00:19.4]} 21. Bxg6 {[%clk 0:00:45.2]} 21... hxg6 {[%clk 0:00:18.4]}
22. Nce2 {[%clk 0:00:31.9]} 22... Qc7 {[%clk 0:00:17.6]} 23. Qxc7+ {[%clk
0:00:25.4]} 23... Kxc7 {[%clk 0:00:18.5]} 24. Nf4 {[%clk 0:00:25]} 24... Re8
{[%clk 0:00:10.5]} 25. Rxe8 {[%clk 0:00:23.6]} 25... Nxe8 {[%clk 0:00:11.4]} 26.
Nxg6 {[%clk 0:00:22.9]} 26... b5 {[%clk 0:00:11.7]} 27. c3 {[%clk 0:00:20.1]}
27... Ra8 {[%clk 0:00:10.3]} 28. Ne4 {[%clk 0:00:19.5]} 28... Nd6 {[%clk
0:00:10.4]} 29. Nc5 {[%clk 0:00:19]} 29... Re8 {[%clk 0:00:09.9]} 30. Ne5 {[%clk
0:00:18.7]} 30... b6 {[%clk 0:00:10.2]} 31. Ncd3 {[%clk 0:00:17.6]} 31... Nc4
{[%clk 0:00:10.5]} 32. Nxc4 {[%clk 0:00:17.3]} 32... bxc4 {[%clk 0:00:11.4]} 33.
Ne5 {[%clk 0:00:17.8]} 33... b5 {[%clk 0:00:12]} 34. h4 {[%clk 0:00:17.4]} 34...
c5 {[%clk 0:00:12.4]} 35. Kf2 {[%clk 0:00:11.5]} 35... cxd4 {[%clk 0:00:11.6]}
36. cxd4 {[%clk 0:00:12.4]} 36... Kd6 {[%clk 0:00:11.6]} 37. Ke3 {[%clk
0:00:12.3]} 37... Kd5 {[%clk 0:00:12.1]} 38. g4 {[%clk 0:00:12.4]} 38... c3
{[%clk 0:00:09.4]} 39. bxc3 {[%clk 0:00:12.2]} 39... Ra8 {[%clk 0:00:10]} 40. h5
{[%clk 0:00:11.6]} 40... Rxa3 {[%clk 0:00:10.4]} 41. Kd3 {[%clk 0:00:12.1]}
41... Ra1 {[%clk 0:00:10.4]} 42. g5 {[%clk 0:00:11.9]} 42... Rg1 {[%clk
0:00:10.7]} 43. Nf3 {[%clk 0:00:11.2]} 43... Rg3 {[%clk 0:00:10.9]} 44. Ke3
{[%clk 0:00:11.3]} 44... Kc4 {[%clk 0:00:09.7]} 45. Kf4 {[%clk 0:00:11.6]} 45...
Rg2 {[%clk 0:00:09.1]} 46. Nh4 {[%clk 0:00:06.3]} 46... Rf2+ {[%clk 0:00:08.8]}
47. Kg3 {[%clk 0:00:06.4]} 47... Rf1 {[%clk 0:00:09.2]} 48. h6 {[%clk
0:00:06.6]} 48... gxh6 {[%clk 0:00:09.5]} 49. gxh6 {[%clk 0:00:07.5]} 49... Rf6
{[%clk 0:00:09.7]} 50. h7 {[%clk 0:00:05.6]} 50... Rh6 {[%clk 0:00:09.8]} 51.
Nf5 {[%clk 0:00:02.3]} 51... Rxh7 {[%clk 0:00:09.9]} 52. Nd6+ {[%clk 0:00:02.6]}
52... Kd5 {[%clk 0:00:08.8]} 53. Nxb5 {[%clk 0:00:02.7]} 53... Rb7 {[%clk
0:00:09.2]} 54. Na3 {[%clk 0:00:02]} 54... Rb3 {[%clk 0:00:08.9]} 0-1

[Event "Early-Titled-Tuesday-Blitz-January-23-2024"]
[Site "Chess.com"]
[Date "2024.01.23"]
[Round "5"]
[White "dropstoneDP"]
[Black "mbojan"]
[Result "1-0"]
[WhiteElo "3061"]
[BlackElo "2891"]
[TimeControl "180+1"]
[EndTime "8:56:02 PST"]
[Termination "dropstoneDP won by checkmate"]

1. e4 {[%clk 0:03:00.9]} 1... a6 {[%clk 0:02:59.5]} 2. d4 {[%clk 0:03:01.1]}
2... e6 {[%clk 0:02:59.7]} 3. Be3 {[%clk 0:02:58.9]} 3... d5 {[%clk 0:02:59.7]}
4. Nd2 {[%clk 0:02:56.9]} 4... c5 {[%clk 0:02:54]} 5. exd5 {[%clk 0:02:51.9]}
5... cxd4 {[%clk 0:02:52.5]} 6. Bxd4 {[%clk 0:02:52.8]} 6... exd5 {[%clk
0:02:49.3]} 7. Ngf3 {[%clk 0:02:44.4]} 7... Nc6 {[%clk 0:02:49.2]} 8. Nb3 {[%clk
0:02:26]} 8... Nxd4 {[%clk 0:02:44.4]} 9. Qxd4 {[%clk 0:02:21.2]} 9... Nf6
{[%clk 0:02:44]} 10. Bd3 {[%clk 0:02:20.5]} 10... Bd6 {[%clk 0:02:38.6]} 11.
Qe3+ {[%clk 0:02:20.6]} 11... Be6 {[%clk 0:02:23]} 12. Nbd4 {[%clk 0:02:11.1]}
12... Qe7 {[%clk 0:02:04.1]} 13. O-O {[%clk 0:02:07.3]} 13... O-O {[%clk
0:02:00.6]} 14. Nf5 {[%clk 0:02:05.8]} 14... Bxf5 {[%clk 0:01:59.7]} 15. Qxe7
{[%clk 0:02:06.5]} 15... Bxe7 {[%clk 0:01:59.8]} 16. Bxf5 {[%clk 0:02:07.2]}
16... g6 {[%clk 0:01:48.7]} 17. Bd3 {[%clk 0:02:04.2]} 17... Ne4 {[%clk
0:01:46.2]} 18. Rad1 {[%clk 0:02:01.6]} 18... Rfd8 {[%clk 0:01:27.4]} 19. c3
{[%clk 0:01:58.6]} 19... f5 {[%clk 0:01:22.7]} 20. Bc2 {[%clk 0:01:57.4]} 20...
Bf6 {[%clk 0:01:22.4]} 21. Bb3 {[%clk 0:01:55.4]} 21... Kg7 {[%clk 0:01:17]} 22.
Bxd5 {[%clk 0:01:54.8]} 22... Rab8 {[%clk 0:01:15.6]} 23. Bxe4 {[%clk
0:01:53.4]} 23... fxe4 {[%clk 0:01:15.6]} 24. Nd2 {[%clk 0:01:53]} 24... Re8
{[%clk 0:01:03.4]} 25. Rde1 {[%clk 0:01:42.6]} 25... e3 {[%clk 0:00:57.9]} 26.
Rxe3 {[%clk 0:01:42.5]} 26... Rxe3 {[%clk 0:00:58.5]} 27. fxe3 {[%clk
0:01:43.4]} 27... b5 {[%clk 0:00:58.8]} 28. a3 {[%clk 0:01:38.1]} 28... a5
{[%clk 0:00:58.8]} 29. Ne4 {[%clk 0:01:36]} 29... Be5 {[%clk 0:00:41.2]} 30. Rd1
{[%clk 0:01:19.1]} 30... b4 {[%clk 0:00:41.2]} 31. axb4 {[%clk 0:01:19.2]} 31...
axb4 {[%clk 0:00:41.6]} 32. Rd5 {[%clk 0:01:19.2]} 32... bxc3 {[%clk 0:00:42.1]}
33. bxc3 {[%clk 0:01:19.7]} 33... Rb1+ {[%clk 0:00:42.1]} 34. Kf2 {[%clk
0:01:19.8]} 34... Rb2+ {[%clk 0:00:37.2]} 35. Kf3 {[%clk 0:01:17]} 35... Bxh2
{[%clk 0:00:37.5]} 36. Rd7+ {[%clk 0:01:16.3]} 36... Kh6 {[%clk 0:00:32]} 37.
Nf6 {[%clk 0:01:01.1]} 37... Bg1 {[%clk 0:00:21.2]} 38. Rxh7+ {[%clk 0:00:57.1]}
38... Kg5 {[%clk 0:00:21.7]} 39. Ne4+ {[%clk 0:00:57.1]} 39... Kf5 {[%clk
0:00:22.2]} 40. Rh1 {[%clk 0:00:53]} 40... Rb1 {[%clk 0:00:20.7]} 41. Ng3+
{[%clk 0:00:30.8]} 41... Ke5 {[%clk 0:00:20.1]} 42. Ne2 {[%clk 0:00:30.7]} 42...
Rf1+ {[%clk 0:00:20.2]} 43. Kg4 {[%clk 0:00:30.6]} 43... Re1 {[%clk 0:00:11.8]}
44. Nxg1 {[%clk 0:00:29.3]} 44... Ke4 {[%clk 0:00:12.5]} 45. Nh3 {[%clk
0:00:29.3]} 45... Rxe3 {[%clk 0:00:10.2]} 46. Rc1 {[%clk 0:00:27.6]} 46... Kd5
{[%clk 0:00:10.3]} 47. c4+ {[%clk 0:00:27.3]} 47... Kc5 {[%clk 0:00:10.8]} 48.
Nf4 {[%clk 0:00:27.3]} 48... Re4 {[%clk 0:00:11]} 49. Kf3 {[%clk 0:00:26.9]}
49... Re8 {[%clk 0:00:07.8]} 50. Nxg6 {[%clk 0:00:27.3]} 50... Rf8+ {[%clk
0:00:08.5]} 51. Nf4 {[%clk 0:00:27.4]} 51... Kc6 {[%clk 0:00:09.1]} 52. c5
{[%clk 0:00:27.1]} 52... Rg8 {[%clk 0:00:07.9]} 53. g4 {[%clk 0:00:27.4]} 53...
Ra8 {[%clk 0:00:08.6]} 54. g5 {[%clk 0:00:27.6]} 54... Ra3+ {[%clk 0:00:09.5]}
55. Kg4 {[%clk 0:00:27.8]} 55... Ra7 {[%clk 0:00:10.4]} 56. g6 {[%clk
0:00:26.4]} 56... Rg7 {[%clk 0:00:11.3]} 57. Kf5 {[%clk 0:00:26.5]} 57... Rd7
{[%clk 0:00:12.2]} 58. Rg1 {[%clk 0:00:24.7]} 58... Rd2 {[%clk 0:00:13.1]} 59.
Rg2 {[%clk 0:00:23.4]} 59... Rd8 {[%clk 0:00:14]} 60. g7 {[%clk 0:00:23.5]}
60... Rf8+ {[%clk 0:00:14.9]} 61. gxf8=Q {[%clk 0:00:21.8]} 61... Kb5 {[%clk
0:00:15.8]} 62. c6 {[%clk 0:00:20.5]} 62... Kc4 {[%clk 0:00:16.7]} 63. c7 {[%clk
0:00:20.4]} 63... Kd4 {[%clk 0:00:17.6]} 64. Qb4+ {[%clk 0:00:18.7]} 64... Ke3
{[%clk 0:00:18.5]} 65. Qc3# {[%clk 0:00:18.1]} 1-0

[Event "Early-Titled-Tuesday-Blitz-January-23-2024"]
[Site "Chess.com"]
[Date "2024.01.23"]
[Round "5"]
[White "secretsuperstar7"]
[Black "DarZay"]
[Result "1-0"]
[WhiteElo "2512"]
[BlackElo "2269"]
[TimeControl "180+1"]
[EndTime "8:56:02 PST"]
[Termination "secretsuperstar7 won on time"]

1. c4 {[%clk 0:02:54.9]} 1... e6 {[%clk 0:02:56.7]} 2. Nc3 {[%clk 0:02:55.1]}
2... d5 {[%clk 0:02:55.9]} 3. e3 {[%clk 0:02:53.2]} 3... Nf6 {[%clk 0:02:53.5]}
4. Nf3 {[%clk 0:02:53.4]} 4... c5 {[%clk 0:02:51.7]} 5. cxd5 {[%clk 0:02:53]}
5... exd5 {[%clk 0:02:50.2]} 6. d4 {[%clk 0:02:52.1]} 6... cxd4 {[%clk
0:02:49.9]} 7. exd4 {[%clk 0:02:50.6]} 7... Nc6 {[%clk 0:02:49.1]} 8. Bg5 {[%clk
0:02:49.4]} 8... Be7 {[%clk 0:02:41.7]} 9. Be2 {[%clk 0:02:48.9]} 9... Bf5
{[%clk 0:02:39.8]} 10. O-O {[%clk 0:02:42.9]} 10... Rb8 {[%clk 0:02:36.3]} 11.
Ne5 {[%clk 0:02:24.1]} 11... O-O {[%clk 0:02:17.3]} 12. Bf3 {[%clk 0:02:19.6]}
12... Be4 {[%clk 0:02:02.9]} 13. Bxe4 {[%clk 0:02:13.9]} 13... Nxe4 {[%clk
0:01:58.5]} 14. Bxe7 {[%clk 0:02:11.9]} 14... Nxe7 {[%clk 0:01:56.4]} 15. Re1
{[%clk 0:01:50.7]} 15... f5 {[%clk 0:01:53.1]} 16. f3 {[%clk 0:01:47.5]} 16...
Nf6 {[%clk 0:01:49.6]} 17. Qb3 {[%clk 0:01:45.1]} 17... Nc6 {[%clk 0:01:46.5]}
18. Rad1 {[%clk 0:01:41.3]} 18... Qd6 {[%clk 0:01:37.7]} 19. Nb5 {[%clk
0:01:33]} 19... Qd8 {[%clk 0:01:35.7]} 20. Rc1 {[%clk 0:01:30.1]} 20... a6
{[%clk 0:01:30.3]} 21. Nc3 {[%clk 0:01:03.3]} 21... Nxd4 {[%clk 0:01:29.3]} 22.
Qb4 {[%clk 0:00:55]} 22... Nc6 {[%clk 0:01:24.4]} 23. Qc5 {[%clk 0:00:54.5]}
23... Rc8 {[%clk 0:01:13.1]} 24. Nxc6 {[%clk 0:00:44]} 24... Rxc6 {[%clk
0:01:09.6]} 25. Qd4 {[%clk 0:00:43.8]} 25... Rc4 {[%clk 0:00:58.6]} 26. Qe3
{[%clk 0:00:42]} 26... Re8 {[%clk 0:00:50]} 27. Qf2 {[%clk 0:00:40.5]} 27... d4
{[%clk 0:00:43.4]} 28. Red1 {[%clk 0:00:22.4]} 28... Qb6 {[%clk 0:00:34.1]} 29.
Nd5 {[%clk 0:00:15.4]} 29... Rxc1 {[%clk 0:00:29.7]} 30. Nxf6+ {[%clk
0:00:15.2]} 30... Qxf6 {[%clk 0:00:23]} 31. Rxc1 {[%clk 0:00:15.9]} 31... Qe5
{[%clk 0:00:20]} 32. Rd1 {[%clk 0:00:14.3]} 32... Rd8 {[%clk 0:00:14.3]} 33. Rd3
{[%clk 0:00:12.2]} 33... Qc5 {[%clk 0:00:12.3]} 34. h3 {[%clk 0:00:10.8]} 34...
Qc1+ {[%clk 0:00:11.5]} 35. Kh2 {[%clk 0:00:11.2]} 35... Qf4+ {[%clk 0:00:11.1]}
36. g3 {[%clk 0:00:11.1]} 36... Qe5 {[%clk 0:00:11]} 37. Qd2 {[%clk 0:00:08.4]}
37... b5 {[%clk 0:00:09.1]} 38. Kg2 {[%clk 0:00:08.5]} 38... Kf7 {[%clk
0:00:08.3]} 39. Kf2 {[%clk 0:00:08.7]} 39... Rd5 {[%clk 0:00:06.5]} 40. Qg5
{[%clk 0:00:07.7]} 40... Qf6 {[%clk 0:00:05.4]} 41. Qf4 {[%clk 0:00:07.7]} 41...
Qe5 {[%clk 0:00:05.2]} 42. Qg5 {[%clk 0:00:07.9]} 42... Qe7 {[%clk 0:00:05]} 43.
Qf4 {[%clk 0:00:07.3]} 43... Qd6 {[%clk 0:00:04.2]} 44. Qg5 {[%clk 0:00:06.5]}
44... g6 {[%clk 0:00:02.4]} 45. Qh6 {[%clk 0:00:06.5]} 45... Kg8 {[%clk
0:00:02.9]} 46. Qg5 {[%clk 0:00:05.2]} 46... Qe6 {[%clk 0:00:02.4]} 47. h4
{[%clk 0:00:05.3]} 47... Re5 {[%clk 0:00:01.4]} 48. Qd2 {[%clk 0:00:03.6]} 48...
Rd5 {[%clk 0:00:01.3]} 49. Qf4 {[%clk 0:00:03.4]} 1-0

[Event "Early-Titled-Tuesday-Blitz-January-23-2024"]
[Site "Chess.com"]
[Date "2024.01.23"]
[Round "5"]
[White "starworld123"]
[Black "Skatchkov_V"]
[Result "1-0"]
[WhiteElo "2848"]
[BlackElo "2624"]
[TimeControl "180+1"]
[EndTime "8:56:03 PST"]
[Termination "starworld123 won by resignation"]

1. e3 {[%clk 0:03:00.9]} 1... e5 {[%clk 0:02:49.8]} 2. d4 {[%clk 0:02:58.7]}
2... exd4 {[%clk 0:02:49.6]} 3. exd4 {[%clk 0:02:59.6]} 3... d5 {[%clk 0:02:48]}
4. Nc3 {[%clk 0:02:58.6]} 4... Nf6 {[%clk 0:02:43.9]} 5. Bf4 {[%clk 0:02:54.1]}
5... Bd6 {[%clk 0:02:42.6]} 6. Qd2 {[%clk 0:02:47]} 6... Qe7+ {[%clk 0:02:37.1]}
7. Nge2 {[%clk 0:02:45.8]} 7... Nc6 {[%clk 0:02:17]} 8. O-O-O {[%clk 0:02:39.8]}
8... Bf5 {[%clk 0:02:11.3]} 9. Ng3 {[%clk 0:02:36]} 9... Be6 {[%clk 0:02:04]}
10. Nb5 {[%clk 0:02:18.8]} 10... Bxf4 {[%clk 0:02:01.6]} 11. Qxf4 {[%clk
0:02:19.7]} 11... O-O-O {[%clk 0:02:02.3]} 12. Bd3 {[%clk 0:02:01.2]} 12... a6
{[%clk 0:01:53.2]} 13. Nc3 {[%clk 0:01:59.7]} 13... g6 {[%clk 0:01:50.5]} 14.
Rhe1 {[%clk 0:01:55.4]} 14... Rhe8 {[%clk 0:01:49.6]} 15. f3 {[%clk 0:01:44.4]}
15... h5 {[%clk 0:01:41.3]} 16. Kb1 {[%clk 0:01:34.7]} 16... Kb8 {[%clk
0:01:40.3]} 17. a3 {[%clk 0:01:34.1]} 17... h4 {[%clk 0:01:27]} 18. Qxh4 {[%clk
0:01:26.7]} 18... Rh8 {[%clk 0:01:26.4]} 19. Qf4 {[%clk 0:01:27.4]} 19... Nd7
{[%clk 0:01:18.5]} 20. Nxd5 {[%clk 0:01:23.5]} 20... Qh4 {[%clk 0:01:14.5]} 21.
Qxc7+ {[%clk 0:01:22.2]} 21... Ka7 {[%clk 0:01:10.4]} 22. Nc3 {[%clk 0:01:01.3]}
22... Nb6 {[%clk 0:01:01.4]} 23. Nge2 {[%clk 0:00:51.9]} 23... Qxh2 {[%clk
0:00:58.3]} 24. g3 {[%clk 0:00:41.1]} 24... g5 {[%clk 0:00:39.2]} 25. Be4 {[%clk
0:00:38.7]} 25... Rd7 {[%clk 0:00:35.2]} 26. Qxb6+ {[%clk 0:00:20.2]} 26... Kxb6
{[%clk 0:00:34.2]} 27. d5 {[%clk 0:00:21.1]} 27... f5 {[%clk 0:00:28.9]} 28. Bd3
{[%clk 0:00:13]} 28... Bxd5 {[%clk 0:00:28.3]} 29. Bxf5 {[%clk 0:00:13.6]} 29...
Ba2+ {[%clk 0:00:10.7]} 30. Kxa2 {[%clk 0:00:12.5]} 30... Rxd1 {[%clk
0:00:11.3]} 31. Rxd1 {[%clk 0:00:13.1]} 31... Re8 {[%clk 0:00:10.7]} 32. Be4
{[%clk 0:00:12.9]} 32... Ne5 {[%clk 0:00:09.1]} 33. Rd6+ {[%clk 0:00:10.2]}
33... Kc7 {[%clk 0:00:08]} 34. Rf6 {[%clk 0:00:08.9]} 34... Qh8 {[%clk
0:00:07.2]} 35. Nd4 {[%clk 0:00:08.2]} 35... Qxf6 {[%clk 0:00:06.8]} 36. Nd5+
{[%clk 0:00:08.9]} 36... Kd6 {[%clk 0:00:07.4]} 37. Nxf6 {[%clk 0:00:09.8]}
37... Rf8 {[%clk 0:00:07.9]} 38. Nf5+ {[%clk 0:00:07.4]} 38... Ke6 {[%clk
0:00:06.8]} 39. Nh5 {[%clk 0:00:08.3]} 39... g4 {[%clk 0:00:06.3]} 40. f4 {[%clk
0:00:05.2]} 40... Nf3 {[%clk 0:00:04.7]} 41. Ne3 {[%clk 0:00:04.6]} 41... Rh8
{[%clk 0:00:02.5]} 42. Bf5+ {[%clk 0:00:05.1]} 42... Kf7 {[%clk 0:00:01.4]} 43.
Bxg4 {[%clk 0:00:06]} 43... Nh2 {[%clk 0:00:02.3]} 44. Be2 {[%clk 0:00:05.9]}
44... Re8 {[%clk 0:00:03.2]} 45. Bc4+ {[%clk 0:00:03.4]} 45... Kg6 {[%clk
0:00:03.8]} 46. Nd5 {[%clk 0:00:02.9]} 46... Rc8 {[%clk 0:00:04.5]} 47. Ne7+
{[%clk 0:00:02.8]} 47... Kxh5 {[%clk 0:00:05.1]} 48. Nxc8 {[%clk 0:00:03.7]}
48... Kg4 {[%clk 0:00:05.1]} 49. Bd5 {[%clk 0:00:04.6]} 1-0

[Event "Early-Titled-Tuesday-Blitz-January-23-2024"]
[Site "Chess.com"]
[Date "2024.01.23"]
[Round "5"]
[White "WhiteKnight2612"]
[Black "vladgoncharov"]
[Result "1-0"]
[WhiteElo "2868"]
[BlackElo "2637"]
[TimeControl "180+1"]
[EndTime "8:56:05 PST"]
[Termination "WhiteKnight2612 won on time"]

1. Nf3 {[%clk 0:03:00.9]} 1... Nf6 {[%clk 0:02:54.9]} 2. g3 {[%clk 0:03:01.8]}
2... c5 {[%clk 0:02:54.2]} 3. Bg2 {[%clk 0:03:01.9]} 3... Nc6 {[%clk 0:02:54.8]}
4. O-O {[%clk 0:03:01.2]} 4... g6 {[%clk 0:02:54.6]} 5. c4 {[%clk 0:03:00.4]}
5... d6 {[%clk 0:02:53.4]} 6. d4 {[%clk 0:02:56.8]} 6... cxd4 {[%clk 0:02:52.8]}
7. Nxd4 {[%clk 0:02:56.4]} 7... Bd7 {[%clk 0:02:52.8]} 8. Nc3 {[%clk 0:02:54.2]}
8... Bg7 {[%clk 0:02:52]} 9. Nc2 {[%clk 0:02:52.6]} 9... O-O {[%clk 0:02:49.5]}
10. b3 {[%clk 0:02:45.2]} 10... Qa5 {[%clk 0:02:47.6]} 11. Bb2 {[%clk
0:02:43.7]} 11... Qh5 {[%clk 0:02:42.8]} 12. Ne3 {[%clk 0:02:34.2]} 12... Ng4
{[%clk 0:02:41.6]} 13. Nxg4 {[%clk 0:02:33.2]} 13... Bxg4 {[%clk 0:02:41]} 14.
Qd2 {[%clk 0:02:32.6]} 14... Bh3 {[%clk 0:02:05.6]} 15. Nd5 {[%clk 0:02:22.8]}
15... Bxg2 {[%clk 0:01:51.8]} 16. Kxg2 {[%clk 0:02:16.8]} 16... Rac8 {[%clk
0:01:49.6]} 17. h3 {[%clk 0:02:11.5]} 17... Bxb2 {[%clk 0:01:48.6]} 18. Qxb2
{[%clk 0:02:10.6]} 18... Rfe8 {[%clk 0:01:48.6]} 19. Rad1 {[%clk 0:02:10.5]}
19... Qe5 {[%clk 0:01:47.4]} 20. Qd2 {[%clk 0:02:01.6]} 20... e6 {[%clk
0:01:39.3]} 21. Ne3 {[%clk 0:01:56.3]} 21... Red8 {[%clk 0:01:37.2]} 22. Ng4
{[%clk 0:01:53.7]} 22... Qg7 {[%clk 0:01:37]} 23. h4 {[%clk 0:01:47.2]} 23... h5
{[%clk 0:01:32.6]} 24. Nh2 {[%clk 0:01:47.1]} 24... d5 {[%clk 0:01:29.7]} 25.
cxd5 {[%clk 0:01:46.8]} 25... Rxd5 {[%clk 0:01:29.2]} 26. Qe3 {[%clk 0:01:47.2]}
26... Rcd8 {[%clk 0:01:28.5]} 27. Rxd5 {[%clk 0:01:45.1]} 27... Rxd5 {[%clk
0:01:28]} 28. Nf3 {[%clk 0:01:45.7]} 28... Qb2 {[%clk 0:01:26.7]} 29. Rc1 {[%clk
0:01:36.7]} 29... Qxa2 {[%clk 0:01:19]} 30. Rc4 {[%clk 0:01:36.3]} 30... Qb2
{[%clk 0:00:55.2]} 31. Re4 {[%clk 0:01:32.7]} 31... Kg7 {[%clk 0:00:49.6]} 32.
Ng5 {[%clk 0:01:24.7]} 32... Nd8 {[%clk 0:00:41.9]} 33. Qxa7 {[%clk 0:01:17.3]}
33... Qc3 {[%clk 0:00:22.6]} 34. Re3 {[%clk 0:01:13.1]} 34... Qc6 {[%clk
0:00:21.8]} 35. Rf3 {[%clk 0:00:53.3]} 35... Rf5 {[%clk 0:00:18.3]} 36. Qd4+
{[%clk 0:00:52.3]} 36... f6 {[%clk 0:00:15.4]} 37. Qxd8 {[%clk 0:00:47.1]} 37...
fxg5 {[%clk 0:00:15.5]} 38. Qe7+ {[%clk 0:00:45.9]} 38... Kg8 {[%clk 0:00:14.9]}
39. hxg5 {[%clk 0:00:45.5]} 39... b5 {[%clk 0:00:11.5]} 40. Qd8+ {[%clk
0:00:37.3]} 40... Kg7 {[%clk 0:00:11]} 41. Qd4+ {[%clk 0:00:36.2]} 41... Kg8
{[%clk 0:00:10.6]} 42. Qd3 {[%clk 0:00:30.1]} 42... Kg7 {[%clk 0:00:07.4]} 43.
e4 {[%clk 0:00:23.1]} 43... Rxf3 {[%clk 0:00:06.5]} 44. Qxf3 {[%clk 0:00:23.6]}
44... e5 {[%clk 0:00:06.8]} 45. Qe3 {[%clk 0:00:24.2]} 45... Qe6 {[%clk
0:00:05]} 46. Qa7+ {[%clk 0:00:21.1]} 46... Kg8 {[%clk 0:00:04.8]} 47. Qb8+
{[%clk 0:00:19.4]} 47... Kg7 {[%clk 0:00:05.1]} 48. Qxb5 {[%clk 0:00:19.9]}
48... Qg4 {[%clk 0:00:05.1]} 49. Qxe5+ {[%clk 0:00:19.4]} 49... Kg8 {[%clk
0:00:04.7]} 50. Qf4 {[%clk 0:00:18.2]} 50... Qe2 {[%clk 0:00:04.5]} 51. e5
{[%clk 0:00:17.4]} 51... Qd3 {[%clk 0:00:03]} 52. Qc4+ {[%clk 0:00:17.3]} 1-0